{"text_format":"3","workbook":"xlsx","n_sheets":1,"sheets":["Lista artykułów spożywczych"],"not_rendered":{"images":1,"defined_names":3},"read":"whole","date_system":"1900"}

{"sheet":"Lista artykułów spożywczych","index":0,"n_rows":31,"n_cols":8,"rows_kept":31,"merged":[[1,1,1,2]]}
[null,"Lista artykułów spożywczych"]
[null,"DATA"]
[null,"Gotowe?","Produkt","Kategoria","Ilość","Cena","Cena rozszerzona","Marka/komentarze"]
[null,null,"Pomarańcze","Owoce i warzywa",null,null,{"$f":"IFERROR(SUM(Lista_artykułów_spożywczych[Ilość]*Lista_artykułów_spożywczych[Cena]), \"\")","v":{"v":0,"d":"0.00 zł"}}]
[null,null,"Jabłka","Owoce i warzywa",null,null,{"$f":"IFERROR(SUM(Lista_artykułów_spożywczych[Ilość]*Lista_artykułów_spożywczych[Cena]), \"\")","v":{"v":0,"d":"0.00 zł"}}]
[null,null,"Banany","Owoce i warzywa",null,null,{"$f":"IFERROR(SUM(Lista_artykułów_spożywczych[Ilość]*Lista_artykułów_spożywczych[Cena]), \"\")","v":{"v":0,"d":"0.00 zł"}}]
[null,null,"Sałata","Owoce i warzywa",null,null,{"$f":"IFERROR(SUM(Lista_artykułów_spożywczych[Ilość]*Lista_artykułów_spożywczych[Cena]), \"\")","v":{"v":0,"d":"0.00 zł"}}]
[null,null,"Pomidory","Owoce i warzywa",null,null,{"$f":"IFERROR(SUM(Lista_artykułów_spożywczych[Ilość]*Lista_artykułów_spożywczych[Cena]), \"\")","v":{"v":0,"d":"0.00 zł"}},"  "]
[null,null,"Mleko ","Nabiał",null,null,{"$f":"IFERROR(SUM(Lista_artykułów_spożywczych[Ilość]*Lista_artykułów_spożywczych[Cena]), \"\")","v":{"v":0,"d":"0.00 zł"}}]
[null,null,"Ser","Nabiał",null,null,{"$f":"IFERROR(SUM(Lista_artykułów_spożywczych[Ilość]*Lista_artykułów_spożywczych[Cena]), \"\")","v":{"v":0,"d":"0.00 zł"}}]
[null,null,"Jaja","Nabiał",null,null,{"$f":"IFERROR(SUM(Lista_artykułów_spożywczych[Ilość]*Lista_artykułów_spożywczych[Cena]), \"\")","v":{"v":0,"d":"0.00 zł"}}]
[null,null,"Twaróg","Nabiał",null,null,{"$f":"IFERROR(SUM(Lista_artykułów_spożywczych[Ilość]*Lista_artykułów_spożywczych[Cena]), \"\")","v":{"v":0,"d":"0.00 zł"}}]
[null,null,"Wołowina","Mięso",null,null,{"$f":"IFERROR(SUM(Lista_artykułów_spożywczych[Ilość]*Lista_artykułów_spożywczych[Cena]), \"\")","v":{"v":0,"d":"0.00 zł"}}]
[null,null,"Drób","Mięso",null,null,{"$f":"IFERROR(SUM(Lista_artykułów_spożywczych[Ilość]*Lista_artykułów_spożywczych[Cena]), \"\")","v":{"v":0,"d":"0.00 zł"}}]
[null,null,"Szynka","Mięso",null,null,{"$f":"IFERROR(SUM(Lista_artykułów_spożywczych[Ilość]*Lista_artykułów_spożywczych[Cena]), \"\")","v":{"v":0,"d":"0.00 zł"}}]
[null,null,"Sok","Napoje",null,null,{"$f":"IFERROR(SUM(Lista_artykułów_spożywczych[Ilość]*Lista_artykułów_spożywczych[Cena]), \"\")","v":{"v":0,"d":"0.00 zł"}}]
[null,null,"Kawa","Napoje",null,null,{"$f":"IFERROR(SUM(Lista_artykułów_spożywczych[Ilość]*Lista_artykułów_spożywczych[Cena]), \"\")","v":{"v":0,"d":"0.00 zł"}}]
[null,null,"Herbata","Napoje",null,null,{"$f":"IFERROR(SUM(Lista_artykułów_spożywczych[Ilość]*Lista_artykułów_spożywczych[Cena]), \"\")","v":{"v":0,"d":"0.00 zł"}}]
[null,null,"Woda","Napoje",null,null,{"$f":"IFERROR(SUM(Lista_artykułów_spożywczych[Ilość]*Lista_artykułów_spożywczych[Cena]), \"\")","v":{"v":0,"d":"0.00 zł"}}]
[null,null,"Makaron","Makaron",null,null,{"$f":"IFERROR(SUM(Lista_artykułów_spożywczych[Ilość]*Lista_artykułów_spożywczych[Cena]), \"\")","v":{"v":0,"d":"0.00 zł"}}]
[null,null,"Ryż","Makaron",null,null,{"$f":"IFERROR(SUM(Lista_artykułów_spożywczych[Ilość]*Lista_artykułów_spożywczych[Cena]), \"\")","v":{"v":0,"d":"0.00 zł"}}]
[null,null,"Konserwy","Zupa",null,null,{"$f":"IFERROR(SUM(Lista_artykułów_spożywczych[Ilość]*Lista_artykułów_spożywczych[Cena]), \"\")","v":{"v":0,"d":"0.00 zł"}}]
[null,null,"Mieszanka suszona","Zupa",null,null,{"$f":"IFERROR(SUM(Lista_artykułów_spożywczych[Ilość]*Lista_artykułów_spożywczych[Cena]), \"\")","v":{"v":0,"d":"0.00 zł"}}]
[null,null,"Chleb","Pieczywo",null,null,{"$f":"IFERROR(SUM(Lista_artykułów_spożywczych[Ilość]*Lista_artykułów_spożywczych[Cena]), \"\")","v":{"v":0,"d":"0.00 zł"}}]
[null,null,"Chipsy ziemniaczane","Przekąski",null,null,{"$f":"IFERROR(SUM(Lista_artykułów_spożywczych[Ilość]*Lista_artykułów_spożywczych[Cena]), \"\")","v":{"v":0,"d":"0.00 zł"}}]
[null,null,"Precle","Przekąski",null,null,{"$f":"IFERROR(SUM(Lista_artykułów_spożywczych[Ilość]*Lista_artykułów_spożywczych[Cena]), \"\")","v":{"v":0,"d":"0.00 zł"}}]
[null,null,"Lody","Przekąski",null,null,{"$f":"IFERROR(SUM(Lista_artykułów_spożywczych[Ilość]*Lista_artykułów_spożywczych[Cena]), \"\")","v":{"v":0,"d":"0.00 zł"}}]
[null,null,"Ciastka","Przekąski",null,null,{"$f":"IFERROR(SUM(Lista_artykułów_spożywczych[Ilość]*Lista_artykułów_spożywczych[Cena]), \"\")","v":{"v":0,"d":"0.00 zł"}}]
[null,null,"Talerze papierowe","Akcesoria",null,null,{"$f":"IFERROR(SUM(Lista_artykułów_spożywczych[Ilość]*Lista_artykułów_spożywczych[Cena]), \"\")","v":{"v":0,"d":"0.00 zł"}}]
[null,null,"Serwetki","Akcesoria",null,null,{"$f":"IFERROR(SUM(Lista_artykułów_spożywczych[Ilość]*Lista_artykułów_spożywczych[Cena]), \"\")","v":{"v":0,"d":"0.00 zł"}}]
[{"$nulls":6},{"$f":"SUBTOTAL(109,Lista_artykułów_spożywczych[Cena rozszerzona])","v":{"v":0,"d":"0.00 zł"}}]